fUSD/lending_fUSD_20250113
["ID","MTS","AMOUNT","RATE_DAILY","PERIOD"]
[348776737,1736779872808,-500.0,0.00011083,2]
[348776738,1736779872818,-607.29032663,0.00011083,2]
[348776739,1736779872831,-500.0,0.00011083,2]
[348776740,1736779872840,-500.0,0.00011083,2]
[348776741,1736779872849,-500.0,0.00011083,2]
[348776742,1736779872859,-500.0,0.00011083,2]
[348776743,1736779872868,-500.0,0.00011083,2]
[348776744,1736779872877,-500.0,0.00011083,2]
[348776745,1736779872885,-500.0,0.00011083,2]
[348776746,1736779872894,-500.0,0.00011083,2]
[348776747,1736779872903,-500.0,0.00011083,2]
[348776748,1736779872913,-504.01314676,0.00011083,2]
[348776749,1736779872922,-509.65775048,0.00011083,2]
[348776750,1736779872932,-500.0,0.00011083,2]
[348776751,1736779872942,-500.0,0.00011083,2]
[348776752,1736779872952,-500.0,0.00011083,2]
[348776753,1736779872962,-500.0,0.00011083,2]
[348776754,1736779872972,-395.77156266,0.00011083,2]
[348776755,1736779872981,-500.0,0.00011083,2]
[348776756,1736779872990,-503.6079046,0.00011083,2]
[348776757,1736779872999,-248.39378997,0.00011083,2]
[348776758,1736779873009,-500.0,0.00011083,2]
[348776759,1736779873019,-500.0,0.00011083,2]
[348776760,1736779873028,-767.24,0.00011083,2]
[348776761,1736779873038,-500.0,0.00011083,2]
[348776762,1736779873047,-500.0,0.00011083,2]
[348776763,1736779873057,-426.191775,0.00011083,2]
[348776764,1736779873067,-500.0,0.00011083,2]
[348776765,1736779873080,-620.39,0.00011083,2]
[348776766,1736779873090,-514.56,0.00011083,2]
[348776767,1736779873099,-500.0,0.00011083,2]
[348776768,1736779873109,-500.0,0.00011083,2]
[348776769,1736779873118,-502.38613988,0.00011083,2]
[348776770,1736779873127,-500.0,0.00011083,2]
[348776771,1736779873136,-500.0,0.00011083,2]
[348776772,1736779873147,-500.0,0.00011083,2]
[348776773,1736779873158,-500.0,0.00011083,2]
[348776774,1736779873168,-500.0,0.00011083,2]
[348776775,1736779873178,-500.0,0.00011083,2]
[348776776,1736779873188,-500.0,0.00011083,2]
[348776777,1736779873198,-500.0,0.00011083,2]
[348776778,1736779873210,-500.0,0.00011083,2]
[348776779,1736779873220,-500.0,0.00011083,2]
[348776780,1736779873229,-254.13359121,0.00011083,2]
[348776781,1736779873239,-500.0,0.00011083,2]
[348776782,1736779873250,-500.0,0.00011083,2]
[348776783,1736779873259,-500.0,0.00011083,2]
[348776784,1736779873268,-500.0,0.00011083,2]
[348776785,1736779873279,-500.0,0.00011083,2]
[348776786,1736779873289,-500.0,0.00011083,2]
[348776787,1736779873298,-500.0,0.00011083,2]
[348776788,1736779873308,-567.73014919,0.00011083,2]
[348776789,1736779873317,-380.70404616,0.00011083,2]
[348776790,1736779873329,-500.0,0.00011083,2]
[348776791,1736779873338,-500.0,0.00011083,2]
[348776792,1736779873348,-500.0,0.00011083,2]
[348776793,1736779873357,-500.0,0.00011083,2]
[348776794,1736779873366,-500.0,0.00011083,2]
[348776795,1736779873376,-500.0,0.00011083,2]
[348776796,1736779873385,-500.0,0.00011083,2]
[348776797,1736779873395,-554.43605598,0.00011083,2]
[348776798,1736779873404,-500.0,0.00011083,2]
[348776799,1736779873413,-500.0,0.00011083,2]
[348776800,1736779873423,-500.0,0.00011083,2]
[348776801,1736779873432,-500.0,0.00011083,2]
[348776802,1736779873441,-826.53,0.00011083,2]
[348776803,1736779873450,-500.0,0.00011083,2]
[348776804,1736779873460,-500.0,0.00011083,2]
[348776805,1736779873469,-500.0,0.00011083,2]
[348776806,1736779873478,-500.0,0.00011083,2]
[348776807,1736779873488,-500.0,0.00011083,2]
[348776808,1736779873496,-500.0,0.00011083,2]
[348776809,1736779873506,-500.0,0.00011083,7]
[348776810,1736779873516,-508.27323068,0.00011083,2]
[348776811,1736779873527,-507.12431399,0.00011083,2]
[348776812,1736779873536,-500.0,0.00011083,2]
[348776813,1736779873546,-741.0,0.00011083,2]
[348776814,1736779873557,-500.0,0.00011083,2]
[348776815,1736779873567,-500.0,0.00011083,2]
[348776816,1736779873579,-500.0,0.00011083,2]
[348776817,1736779873588,-500.0,0.00011083,2]
[348776818,1736779873598,-672.04,0.00011083,2]
[348776819,1736779873608,-849.97,0.00011083,2]
[348776820,1736779873618,-500.0,0.00011083,2]
[348776821,1736779873627,-504.76302848,0.00011083,2]
[348776822,1736779873637,-500.0,0.00011083,2]
[348776823,1736779873647,-500.0,0.00011083,2]
[348776824,1736779873656,-500.0,0.00011083,2]
[348776825,1736779873666,-500.0,0.00011083,2]
[348776826,1736779873676,-500.0,0.00011083,2]
[348776827,1736779873685,-500.0,0.00011083,2]
[348776828,1736779873695,-500.0,0.00011083,2]
[348776829,1736779873706,-500.0,0.00011083,2]
[348776830,1736779873715,-500.0,0.00011083,2]
[348776831,1736779873726,-500.0,0.00011083,2]
[348776832,1736779873736,-500.0,0.00011083,2]
[348776833,1736779873746,-500.0,0.00011083,2]
[348776834,1736779873755,-500.0,0.00011083,2]
[348776835,1736779873765,-500.0,0.00011083,2]
[348776836,1736779873775,-500.0,0.00011083,2]
[348776837,1736779873785,-578.45793296,0.00011083,2]
[348776838,1736779873796,-500.0,0.00011083,2]
[348776839,1736779873806,-500.0,0.00011083,2]
[348776840,1736779873815,-500.0,0.00011083,2]
[348776841,1736779873825,-371.37,0.00011083,2]
[348776842,1736779873838,-500.0,0.00011083,2]
[348776843,1736779873848,-500.0,0.00011083,2]
[348776844,1736779873858,-500.0,0.00011083,2]
[348776845,1736779873868,-500.0,0.00011083,2]
[348776846,1736779873877,-500.0,0.00011083,2]
[348776847,1736779873887,-500.0,0.00011083,2]
[348776848,1736779873896,-500.0,0.00011083,2]
[348776849,1736779873906,-500.0,0.00011083,2]
[348776850,1736779873916,-595.14,0.00011083,2]
[348776851,1736779873925,-500.0,0.00011083,2]
[348776852,1736779873935,-648.91734748,0.00011083,2]
[348776853,1736779873944,-673.98,0.00011083,2]
[348776854,1736779873954,-500.0,0.00011083,2]
[348776855,1736779873964,-500.0,0.00011083,2]
[348776856,1736779873974,-715.94,0.00011083,2]
[348776857,1736779873984,-500.0,0.00011083,2]
[348776858,1736779873993,-500.0,0.00011083,2]
[348776859,1736779874003,-500.0,0.00011083,2]
[348776860,1736779874013,-500.0,0.00011083,2]
[348776861,1736779874023,-742.47,0.00011083,2]
[348776862,1736779874033,-1412.07,0.00011083,2]
[348776863,1736779874042,-500.0,0.00011083,2]
[348776864,1736779874052,-763.99,0.00011083,2]
[348776865,1736779874063,-657.22,0.00011083,2]
[348776866,1736779874073,-500.0,0.00011083,2]
[348776867,1736779874088,-500.0,0.00011083,2]
[348776868,1736779874098,-68.71303495,0.00011083,2]
[348776869,1736779874115,-387.71696505,0.00011083,2]
[348776870,1736779874124,-1128.78303494,0.00011083,2]
[348776871,1736779874162,-500.0,0.00011082,2]
[348776872,1736779874171,-126.44696506,0.00011083,2]
[348776873,1736779874182,-94.27301494,0.00011083,2]
[348776874,1736779874655,-500.0,9.985e-05,2]
[348776875,1736779874665,-151.442326,9.986e-05,2]
[348776876,1736779874675,-500.0,9.986e-05,2]
[348776877,1736779874684,-589.09666111,9.986e-05,2]
[348776878,1736779874693,-500.0,0.0001026,2]
[348776879,1736779874704,-1160.95698506,0.00011083,2]
[348776880,1736779874713,-522.67,0.00011083,2]
[348776881,1736779874723,-596.35254667,0.00011083,2]
[348776882,1736779874733,-1536.47,0.00011089,2]
[348776883,1736779874743,-1843.92,0.00011089,2]
[348776884,1736779874753,-3278.93,0.00011089,2]
[348776885,1736779874763,-500.0,0.00011089,2]
[348776886,1736779874772,-1708.73,0.00011089,2]
[348776887,1736779874782,-2924.42,0.00011089,2]
[348776888,1736779874791,-500.0,0.0001109,2]
[348776889,1736779874801,-451.63909615,0.0001109,2]
[348776890,1736779874811,-500.0,0.0001109,2]
[348776891,1736779874821,-500.0,0.0001109,2]
[348776892,1736779874834,-500.0,0.0001109,2]
[348776893,1736779874844,-500.0,0.0001109,2]
[348776894,1736779874854,-500.0,0.0001109,2]
[348776895,1736779874864,-500.0,0.0001109,2]
[348776896,1736779874873,-1102.59,0.00011091,2]
[348776897,1736779874883,-1080.41,0.00011091,2]
[348776898,1736779874892,-1622.71,0.00011091,2]
[348776899,1736779874902,-3131.28,0.00011091,2]
[348776900,1736779874912,-1069.25,0.00011091,2]
[348776901,1736779874922,-1392.58,0.00011091,2]
[348776902,1736779874932,-500.0,0.00011091,2]
[348776903,1736779874942,-1179.25,0.00011091,2]
[348776904,1736779874953,-1617.36,0.00011091,2]
[348776905,1736779874963,-1090.26,0.00011091,2]
[348776906,1736779874973,-1044.57,0.00011091,2]
[348776907,1736779874983,-744.86,0.00011091,2]
[348776908,1736779874993,-500.0,0.00011091,2]
[348776909,1736779875003,-1033.17,0.00011091,2]
[348776910,1736779875012,-1143.1,0.00011091,2]
[348776911,1736779875022,-1217.84,0.00011091,2]
[348776912,1736779875032,-1167.1,0.00011091,2]
[348776913,1736779875042,-1266.02,0.00011091,2]
[348776914,1736779875051,-1553.51,0.00011091,2]
[348776915,1736779875061,-2337.19,0.00011091,2]
[348776916,1736779875071,-687.03,0.00011091,2]
[348776917,1736779875083,-566.34,0.00011091,2]
[348776918,1736779875093,-1860.97,0.00011091,2]
[348776919,1736779875103,-500.0,0.00011091,2]
[348776920,1736779875113,-500.0,0.00011091,2]
[348776921,1736779875123,-979.03,0.00011091,2]
[348776922,1736779875134,-1232.6,0.00011091,2]
[348776923,1736779875144,-703.3,0.00011091,2]
[348776924,1736779875154,-500.0,0.00011091,2]
[348776925,1736779875165,-1345.74,0.00011091,2]
[348776926,1736779875176,-1983.85,0.00011091,2]
[348776927,1736779875187,-1109.44,0.00011094,2]
[348776928,1736779875197,-1573.01,0.00011094,2]
[348776929,1736779875211,-2880.33,0.00011094,2]
[348776930,1736779875222,-1069.82645234,0.00011099,2]
[348776931,1736779875234,-1069.82645226,0.00011099,2]
[348776932,1736779875244,-1069.82645226,0.00011099,2]
[348776933,1736779875254,-1069.82645226,0.00011099,2]
[348776934,1736779875263,-1069.82645226,0.00011099,2]
[348776935,1736779875274,-623.50640378,0.00011107,2]
[348776936,1736779875283,-1000.0,0.00011136,2]
[348776937,1736779875294,-1069.82645226,0.00011172,2]
[348776938,1736779875303,-623.50640378,0.00011176,2]
[348776939,1736779875313,-1064.51983582,0.00011225,2]
[348776940,1736779875591,-765.78912034,0.00011225,2]
[348776941,1736779875600,-860.54,0.00011242,2]
[348776942,1736779875611,-623.50640378,0.00011245,2]
[348776943,1736779875620,-20329.34,0.00011281,2]
[348776944,1736779875629,-1127.64,0.00011281,2]
[348776945,1736779875638,-3527.10218512,0.00011281,2]
[348776946,1736779875649,-9030.0,0.00011281,2]
[348776947,1736779875660,-1388.95781488,0.00011281,2]
[348776948,1736779875669,-2843.07893382,0.000113,4]
[348776949,1736779875681,-2756.92106618,0.000113,4]
[348776950,1736779875690,-4233.0,0.00011313,2]
[348776951,1736779875699,-623.50640378,0.00011314,2]
[348776952,1736779875709,-500.0,0.00011315,2]
[348776953,1736779875719,-809.3,0.00011355,2]
[348776954,1736779875729,-574.74,0.00011355,2]
[348776955,1736779875739,-1545.09,0.00011355,2]
[348776956,1736779875750,-835.72,0.00011355,2]
[348776957,1736779875759,-500.0,0.00011355,2]
[348776958,1736779875769,-518.54,0.00011356,2]
[348776959,1736779875780,-444.23926515,0.00011356,2]
[348776960,1736779875790,-518.6,0.00011356,2]
[348776961,1736779875799,-500.0,0.00011356,2]
[348776962,1736779875809,-500.0,0.00011356,2]
[348776963,1736779875819,-500.0,0.00011356,2]
[348776964,1736779875833,-500.0,0.00011356,2]
[348776965,1736779875843,-632.25,0.00011356,2]
[348776966,1736779875852,-500.0,0.00011356,2]
[348776967,1736779875862,-567.8,0.00011356,2]
[348776968,1736779875872,-640.96,0.00011356,2]
[348776969,1736779875882,-500.0,0.00011356,2]
[348776970,1736779875892,-500.0,0.00011356,2]
[348776971,1736779875902,-1008.24,0.00011356,2]
[348776972,1736779875912,-500.0,0.00011356,2]
[348776973,1736779875921,-911.95,0.00011356,2]
[348776974,1736779875931,-489.01203029,0.00011356,2]
[348776975,1736779875940,-500.0,0.00011356,2]
[348776976,1736779875950,-626.99,0.00011356,2]
[348776977,1736779875959,-560.45,0.00011356,2]
[348776978,1736779875969,-465.64,0.00011356,2]
[348776979,1736779875978,-500.0,0.00011356,2]
[348776980,1736779875988,-1048.52,0.00011356,2]
[348776981,1736779875997,-756.35,0.00011356,2]
[348776982,1736779876007,-500.0,0.00011356,2]
[348776983,1736779876017,-1082.36,0.00011356,2]
[348776984,1736779876026,-784.1,0.00011356,2]
[348776985,1736779876036,-500.0,0.00011356,2]
[348776986,1736779876046,-636.05,0.00011356,2]
[348776987,1736779876055,-500.0,0.00011356,2]
[348776988,1736779876065,-947.53,0.00011356,2]
[348776989,1736779876074,-711.04,0.00011356,2]
[348776990,1736779876089,-859.02,0.00011356,2]
[348776991,1736779876098,-802.41,0.00011356,2]
[348776992,1736779876107,-505.55,0.00011356,2]
[348776993,1736779876117,-500.0,0.00011356,2]
[348776994,1736779876126,-500.0,0.00011356,2]
[348776995,1736779876136,-500.0,0.00011356,2]
[348776996,1736779876146,-771.98,0.00011356,2]
[348776997,1736779876155,-500.0,0.00011356,2]
[348776998,1736779876165,-500.0,0.00011356,2]
[348776999,1736779876175,-3294.09,0.00011356,2]
[348777000,1736779876188,-500.0,0.00011356,2]
[348777001,1736779876203,-507.78,0.00011356,2]
[348777002,1736779876212,-1028.35,0.00011356,2]
[348777003,1736779876222,-614.87,0.00011356,2]
[348777004,1736779876232,-885.67,0.00011356,2]
[348777005,1736779876242,-687.17,0.00011356,2]
[348777006,1736779876252,-708.2112346,0.00011356,2]
[348777007,1736779876303,-628.52215289,9.986e-05,2]
[348777008,1736779876314,-458.2587654,0.00011356,2]
[348777009,1736779876323,-2600.76577375,0.00011356,2]
[348777010,1736779876339,-493.27422625,0.00011356,2]
[348777011,1736779876349,-500.0,0.00011356,2]
[348777012,1736779876358,-192.72577575,0.00011356,2]
[348777013,1736779876369,-307.27422425,0.00011356,2]
[348777014,1736779876380,-427.88766049,0.00011356,2]
[348777015,1736779876392,-296.09,0.00011356,2]
[348777016,1736779876404,-621.33233951,0.00011356,2]
[348777017,1736779876414,-828.61,0.00011356,2]
[348777018,1736779876424,-500.0,0.00011356,2]
[348777019,1736779876434,-500.0,0.00011356,2]
[348777020,1736779876443,-500.0,0.00011356,2]
[348777021,1736779876452,-3850.07,0.00011356,2]
[348777022,1736779876462,-500.0,0.00011356,2]
[348777023,1736779876472,-500.0,0.00011356,2]
[348777024,1736779876483,-500.0,0.00011356,2]
[348777025,1736779876496,-917.38766049,0.00011356,2]
[348777026,1736779876508,-105.68233951,0.00011356,2]
[348777027,1736779876518,-500.0,0.00011356,2]
[348777028,1736779876529,-930.31,0.00011356,2]
[348777029,1736779876539,-500.0,0.00011356,2]
[348777030,1736779876549,-500.0,0.00011356,2]
[348777031,1736779876558,-586.28721159,0.00011356,2]
[348777032,1736779876568,-2424.96,0.00011356,2]
[348777033,1736779876579,-817.18,0.00011356,2]
[348777034,1736779876591,-584.01,0.00011356,2]
[348777035,1736779876601,-500.0,0.00011356,2]
[348777036,1736779876611,-651.95,0.00011356,2]
[348777037,1736779876621,-881.04,0.00011356,2]
[348777038,1736779876630,-250.63607728,0.00011356,2]
[348777039,1736779876642,-1805.98392272,0.00011356,2]
[348777040,1736779876652,-1755.19,0.00011356,2]
[348777041,1736779876662,-1452.74,0.00011356,2]
[348777042,1736779876672,-967.08607725,0.00011356,2]
[348777043,1736779876684,-1050.75392275,0.00011356,2]
[348777044,1736779876694,-411.14602725,0.00011356,2]
[348777045,1736779876727,-663.03,9.986e-05,2]
[348777046,1736779876737,-278.50397275,0.00011356,2]
[348777047,1736779876746,-1180.29,0.00011356,2]
[348777048,1736779876756,-500.0,0.00011356,2]
[348777049,1736779876765,-500.0,0.00011356,2]
[348777050,1736779876775,-500.0,0.00011356,2]
[348777051,1736779876785,-1540.87,0.00011356,2]
[348777052,1736779876795,-500.0,0.00011356,2]
[348777053,1736779876804,-704.17,0.00011356,2]
[348777054,1736779876814,-500.0,0.00011356,2]
[348777055,1736779876824,-1093.29,0.00011356,2]
[348777056,1736779876839,-1327.069977,0.00011356,2]
[348777057,1736779876848,-1046.82,0.00011356,2]
[348777058,1736779876858,-500.0,0.00011356,2]
[348777059,1736779876868,-500.0,0.00011356,2]
[348777060,1736779876878,-2160.15,0.00011356,2]
[348777061,1736779876887,-580.9,0.00011356,2]
[348777062,1736779876897,-743.46,0.00011356,2]
[348777063,1736779876906,-500.0,0.00011356,2]
[348777064,1736779876916,-1608.95,0.00011356,2]
[348777065,1736779876926,-500.0,0.00011356,2]
[348777066,1736779876936,-786.12,0.00011356,2]
[348777067,1736779876947,-1346.451048,0.00011356,2]
[348777068,1736779876957,-500.0,0.00011356,2]
[348777069,1736779876967,-500.0,0.00011356,2]
[348777070,1736779876976,-500.0,0.00011356,2]
[348777071,1736779876985,-901.56,0.00011356,2]
[348777072,1736779876995,-500.0,0.00011356,2]
[348777073,1736779877005,-2716.29,0.00011356,2]
[348777074,1736779877015,-500.0,0.00011356,2]
[348777075,1736779877025,-500.0,0.00011356,2]
[348777076,1736779877035,-656.5,0.00011356,2]
[348777077,1736779877045,-1804.87,0.00011356,2]
[348777078,1736779877055,-1052.03,0.00011356,2]
[348777079,1736779877064,-308.64500225,0.00011356,2]
[348777080,1736779877082,-2789.19427803,0.00011356,2]
[348777081,1736779877094,-195.54071972,0.00011356,2]
[348777082,1736779877103,-400.23451149,0.00011356,2]
[348777083,1736779877115,-99.76548851,0.00011356,2]
[348777084,1736779877125,-443.05829406,0.00011356,2]
[348777085,1736779877137,-56.94170594,0.00011356,2]
[348777086,1736779877147,-332.54176359,0.00011356,2]
[348777087,1736779877159,-167.45823641,0.00011356,2]
[348777088,1736779877169,-345.37510825,0.00011356,2]
[348777089,1736779877181,-317.09803888,0.00011356,2]
[348777090,1736779877195,-1063.10685287,0.00011356,2]
[348777091,1736779877212,-500.0,0.00011356,2]
[348777092,1736779877222,-558.15863225,0.00011356,2]
[348777093,1736779877376,-1396.99136775,0.00011356,2]
[348777094,1736779877385,-500.0,0.00011356,2]
[348777095,1736779877395,-500.0,0.00011356,2]
[348777096,1736779877407,-500.0,0.00011356,2]
[348777097,1736779877416,-104.00863225,0.00011356,2]
[348777098,1736779877430,-1468.89136775,0.00011356,2]
[348777099,1736779877439,-500.0,0.00011356,2]
[348777100,1736779877448,-500.0,0.00011356,2]
[348777101,1736779877459,-2786.47,0.00011356,2]
[348777102,1736779877468,-500.0,0.00011356,2]
[348777103,1736779877478,-526.93140225,0.00011357,2]
[348777104,1736779877487,-500.0,0.00011357,2]
[348777105,1736779877497,-500.0,0.00011357,2]
[348777106,1736779877507,-500.0,0.00011357,2]
[348777107,1736779877517,-500.0,0.00011357,2]
[348777108,1736779877526,-500.0,0.00011357,2]
[348777109,1736779877536,-500.0,0.00011357,2]
[348777110,1736779877546,-500.0,0.00011357,2]
[348777111,1736779877556,-500.0,0.00011357,2]
[348777112,1736779877565,-500.0,0.00011357,2]
[348777113,1736779877574,-500.0,0.00011357,2]
[348777114,1736779877586,-500.0,0.00011357,2]
[348777115,1736779877596,-500.0,0.00011357,2]
[348777116,1736779877605,-500.0,0.00011357,2]
[348777117,1736779877615,-500.0,0.00011357,2]
[348777118,1736779877625,-500.0,0.00011357,2]
[348777119,1736779877635,-500.0,0.00011357,2]
[348777120,1736779877645,-500.0,0.00011357,2]
[348777121,1736779877654,-573.60246127,0.00011357,2]
[348777122,1736779877664,-500.0,0.00011357,2]
[348777123,1736779877673,-500.0,0.00011357,2]
[348777124,1736779877683,-500.0,0.00011357,2]
[348777125,1736779877692,-500.0,0.00011357,2]
[348777126,1736779877703,-500.0,0.00011357,2]
[348777127,1736779877713,-500.0,0.00011357,2]
[348777128,1736779877723,-500.0,0.00011357,2]
[348777129,1736779877732,-500.0,0.00011357,2]
[348777130,1736779877741,-500.0,0.00011357,2]
[348777131,1736779877750,-500.0,0.00011357,2]
[348777132,1736779877760,-500.0,0.00011357,2]
[348777133,1736779877770,-500.0,0.00011357,2]
[348777134,1736779877779,-500.0,0.00011357,2]
[348777135,1736779877790,-500.0,0.00011357,2]
[348777136,1736779877800,-500.0,0.00011357,2]
[348777137,1736779877810,-508.77757693,0.00011357,2]
[348777138,1736779877820,-500.0,0.00011357,2]
[348777139,1736779877833,-519.28746691,0.00011357,2]
[348777140,1736779877843,-500.0,0.00011357,2]
[348777141,1736779877853,-500.0,0.00011357,2]
[348777142,1736779877862,-500.0,0.00011357,2]
[348777143,1736779877872,-510.53195563,0.00011357,2]
[348777144,1736779877882,-500.0,0.00011357,2]
[348777145,1736779877891,-767.24,0.00011357,2]
[348777146,1736779877901,-500.0,0.00011357,2]
[348777147,1736779877910,-500.0,0.00011357,2]
[348777148,1736779877920,-500.0,0.00011357,2]
[348777149,1736779877929,-620.39,0.00011357,2]
[348777150,1736779877938,-514.56,0.00011357,2]
[348777151,1736779877947,-500.0,0.00011357,2]
[348777152,1736779877956,-500.0,0.00011357,2]
[348777153,1736779877965,-500.0,0.00011357,2]
[348777154,1736779877975,-500.0,0.00011357,2]
[348777155,1736779877984,-500.0,0.00011357,2]
[348777156,1736779877993,-500.0,0.00011357,2]
[348777157,1736779878003,-500.0,0.00011357,2]
[348777158,1736779878012,-500.0,0.00011357,2]
[348777159,1736779878022,-500.0,0.00011357,2]
[348777160,1736779878032,-500.0,0.00011357,2]
[348777161,1736779878042,-500.0,0.00011357,2]
[348777162,1736779878052,-500.0,0.00011357,2]
[348777163,1736779878061,-500.0,0.00011357,2]
[348777164,1736779878071,-500.0,0.00011357,2]
[348777165,1736779878083,-500.0,0.00011357,2]
[348777166,1736779878093,-500.0,0.00011357,2]
[348777167,1736779878102,-500.0,0.00011357,2]
[348777168,1736779878111,-500.0,0.00011357,2]
[348777169,1736779878121,-500.0,0.00011357,2]
[348777170,1736779878130,-500.0,0.00011357,2]
[348777171,1736779878140,-500.0,0.00011357,2]
[348777172,1736779878149,-500.0,0.00011357,2]
[348777173,1736779878159,-500.0,0.00011357,2]
[348777174,1736779878168,-500.0,0.00011357,2]
[348777175,1736779878178,-500.0,0.00011357,2]
[348777176,1736779878190,-500.0,0.00011357,2]
[348777177,1736779878200,-500.0,0.00011357,2]
[348777178,1736779878209,-261.75099942,0.00011357,2]
[348777179,1736779878219,-826.53,0.00011357,2]
[348777180,1736779878230,-275.94,0.00011357,2]
[348777181,1736779878240,-500.0,0.00011357,2]
[348777182,1736779878249,-500.0,0.00011357,2]
[348777183,1736779878258,-500.0,0.00011357,2]
[348777184,1736779878269,-500.0,0.00011357,7]
[348777185,1736779878279,-500.0,0.00011357,2]
[348777186,1736779878288,-741.0,0.00011357,2]
[348777187,1736779878297,-500.0,0.00011357,2]
[348777188,1736779878307,-500.0,0.00011357,2]
[348777189,1736779878316,-500.0,0.00011357,2]
[348777190,1736779878326,-500.0,0.00011357,2]
[348777191,1736779878341,-672.04,0.00011357,2]
[348777192,1736779878351,-849.97,0.00011357,2]
[348777193,1736779878360,-500.0,0.00011357,2]
[348777194,1736779878370,-500.0,0.00011357,2]
[348777195,1736779878380,-500.0,0.00011357,2]
[348777196,1736779878391,-398.67,0.00011357,2]
[348777197,1736779878401,-500.0,0.00011357,2]
[348777198,1736779878411,-500.0,0.00011357,2]
[348777199,1736779878421,-500.0,0.00011357,2]
[348777200,1736779878430,-500.0,0.00011357,2]
[348777201,1736779878440,-500.0,0.00011357,2]
[348777202,1736779878449,-500.0,0.00011357,2]
[348777203,1736779878459,-485.65,0.00011357,2]
[348777204,1736779878468,-500.0,0.00011357,2]
[348777205,1736779878479,-500.0,0.00011357,2]
[348777206,1736779878488,-500.0,0.00011357,2]
[348777207,1736779878498,-500.0,0.00011357,2]
[348777208,1736779878508,-274.95124582,0.00011357,2]
[348777209,1736779878519,-500.0,0.00011357,2]
[348777210,1736779878529,-500.0,0.00011357,2]
[348777211,1736779878539,-500.0,0.00011357,2]
[348777212,1736779878548,-500.0,0.00011357,2]
[348777213,1736779878558,-500.0,0.00011357,2]
[348777214,1736779878568,-360.86,0.00011357,2]
[348777215,1736779878581,-595.14,0.00011357,2]
[348777216,1736779878590,-673.98,0.00011357,2]
[348777217,1736779878600,-500.0,0.00011357,2]
[348777218,1736779878610,-500.0,0.00011357,2]
[348777219,1736779878619,-715.94,0.00011357,2]
[348777220,1736779878629,-500.0,0.00011357,2]
[348777221,1736779878640,-500.0,0.00011357,2]
[348777222,1736779878649,-500.0,0.00011357,2]
[348777223,1736779878659,-373.98,0.00011357,2]
[348777224,1736779878669,-742.47,0.00011357,2]
[348777225,1736779878679,-1412.07,0.00011357,2]
[348777226,1736779878689,-500.0,0.00011357,2]
[348777227,1736779878699,-763.99,0.00011357,2]
[348777228,1736779878708,-657.22,0.00011357,2]
[348777229,1736779878718,-500.0,0.00011357,2]
[348777230,1736779878729,-154.39,0.00011357,2]
[348777231,1736779878740,-1255.23,0.00011357,2]
[348777232,1736779878750,-1255.23,0.00011357,2]
[348777233,1736779878760,-522.67,0.00011357,2]
[348777234,1736779878769,-1536.47,0.00011363,2]
[348777235,1736779878779,-1843.92,0.00011363,2]
[348777236,1736779878788,-3278.93,0.00011363,2]